bitfinex-derivatives/quotes_BTCF0:USTF0_20250417
["timestamp","ask_amount","ask_price","bid_price","bid_amount"]
[1744900682095,0.1192493,83873.0,83872.0,0.1193299]
[1744900682699,0.1192493,83873.0,83872.0,0.1203299]
[1744900683101,0.1192356,83888.0,83887.0,0.1788406]
[1744900683296,0.005,83890.0,83889.0,0.1192265]
[1744900683706,0.0596161,83885.0,83878.0,0.3608]
[1744900684009,0.1788617,83879.0,83878.0,0.1192418]
[1744900684211,0.1788617,83879.0,83878.0,0.1193218]
[1744900684607,0.1788617,83879.0,83878.0,8e-05]
[1744900684809,0.1788617,83879.0,83878.0,0.1193222]
[1744900685205,0.1192384,83881.0,83880.0,0.1788555]
[1744900685409,0.1192324,83885.0,83884.0,0.1192337]
[1744900686113,0.1192351,83883.0,83882.0,0.0596176]
[1744900686513,0.0596161,83885.0,83878.0,0.36088]
[1744900686514,0.0596196,83881.0,83878.0,0.36088]
[1744900686703,0.1192408,83879.0,83878.0,0.4205008]
[1744900687315,0.001,83885.0,83884.0,0.1192337]
[1744900687705,0.001,83885.0,83884.0,0.1193137]
[1744900688007,0.1202322,83885.0,83884.0,0.1193137]
[1744900688417,0.1192322,83885.0,83884.0,0.1193137]
[1744900688607,0.1202322,83885.0,83884.0,0.1193137]
[1744900689512,0.1202322,83885.0,83884.0,8e-05]
[1744900689717,0.1202322,83885.0,83884.0,0.1193137]
[1744900690108,0.1202322,83885.0,83884.0,0.1192337]
[1744900691019,0.1202322,83885.0,83878.0,0.360908]
[1744900691020,0.0596196,83881.0,83878.0,0.360908]
[1744900691220,0.1192408,83879.0,83878.0,0.4801502]
[1744900691522,0.1192408,83879.0,83878.0,0.4800422]
[1744900692212,0.1192408,83879.0,83878.0,0.4801222]
[1744900692409,0.1192422,83878.0,83877.0,0.0482]
[1744900692612,0.0596238,83875.0,83871.0,0.118]
[1744900692808,0.1192521,83871.0,83870.0,0.3608]
[1744900693205,0.1192521,83871.0,83870.0,0.000108]
[1744900693711,0.1292521,83871.0,83870.0,0.000108]
[1744900693907,0.1192564,83868.0,83867.0,0.00026572]
[1744900694212,0.119282,83850.0,83847.0,0.05983943]
[1744900694607,0.119282,83850.0,83847.0,0.00019683]
[1744900694914,0.129282,83850.0,83847.0,0.00019683]
[1744900695115,0.1192977,83839.0,83838.0,0.0515]
[1744900695415,0.1192991,83838.0,83833.0,0.0525]
[1744900695617,0.1193019,83836.0,83835.0,0.12622159]
[1744900696008,0.1193019,83836.0,83835.0,0.12630159]
[1744900696212,0.1696019,83836.0,83835.0,0.00699829]
[1744900696414,0.1696019,83836.0,83835.0,0.12622159]
[1744900696631,0.1696019,83836.0,83835.0,0.12630159]
[1744900696806,0.1789472,83841.0,83840.0,0.1192962]
[1744900697415,0.0596432,83847.0,83846.0,0.1192877]
[1744900697613,0.1789221,83852.0,83851.0,0.1192777]
[1744900697813,0.1889221,83852.0,83851.0,0.1192777]
[1744900698019,0.1889221,83852.0,83851.0,0.4800777]
[1744900698020,0.01,83852.0,83851.0,0.4800777]
[1744900698321,0.0596342,83862.0,83861.0,0.1192635]
[1744900698915,0.1192664,83861.0,83860.0,0.1054]
[1744900699121,0.1192664,83861.0,83860.0,0.2246678]
[1744900699315,0.2196664,83861.0,83860.0,0.2246678]
[1744900700321,0.1192664,83861.0,83860.0,0.2246678]
[1744900700521,0.1192664,83861.0,83860.0,0.2236678]
[1744900700914,0.1192592,83866.0,83865.0,0.1788905]
[1744900701513,0.0532,83876.0,83868.0,0.0596282]
[1744900701728,0.1788613,83881.0,83880.0,0.1192393]
[1744900702112,0.1192408,83879.0,83878.0,0.1135205]
[1744900702824,0.1724408,83879.0,83878.0,0.1135205]
[1744900703220,0.1788787,83877.0,83876.0,0.0596224]
[1744900704028,0.2286787,83877.0,83876.0,0.0596224]
[1744900704223,0.2286787,83877.0,83871.0,0.0596258]
[1744900704224,0.1094251,83877.0,83871.0,0.0596258]
[1744900704529,0.119255,83869.0,83868.0,0.000108]
[1744900704825,0.119255,83869.0,83868.0,0.1193627]
[1744900705020,0.119255,83869.0,83866.0,0.059629]
[1744900705021,0.0498,83870.0,83869.0,0.119255]
[1744900705719,0.0498,83870.0,83869.0,0.171055]
[1744900705921,0.1690536,83870.0,83869.0,0.171055]
[1744900706227,0.1690536,83870.0,83869.0,0.119255]
[1744900706414,0.1690536,83870.0,83869.0,0.119335]
[1744900706614,0.1690536,83870.0,83869.0,8e-05]
[1744900706814,0.119255,83869.0,83868.0,0.001]
[1744900707014,0.169855,83869.0,83868.0,0.001]
[1744900707310,0.169855,83869.0,83863.0,0.0518]
[1744900707311,0.1192621,83864.0,83863.0,0.0518]
[1744900707715,0.1192635,83863.0,83862.0,0.4800649]
[1744900707919,0.1732635,83863.0,83862.0,0.4800649]
[1744900708311,0.1732635,83863.0,83862.0,0.4801449]
[1744900709014,0.1732635,83863.0,83862.0,0.36188]
[1744900709214,0.1832635,83863.0,83862.0,0.00308]
[1744900709422,0.1832635,83863.0,83862.0,0.003]
[1744900709612,0.2344635,83863.0,83862.0,0.00308]
[1744900712027,0.2344635,83863.0,83862.0,0.1193449]
[1744900712028,0.2354635,83863.0,83862.0,0.1193449]
[1744900712224,0.1202635,83863.0,83862.0,0.1193449]
[1744900712725,0.1192635,83863.0,83862.0,0.1193449]
[1744900712929,0.1202635,83863.0,83862.0,0.2220449]
[1744900713521,0.001,83863.0,83862.0,0.2220449]
[1744900713728,0.26777033,83866.0,83865.0,0.1192607]
[1744900713928,0.26777013,83866.0,83865.0,0.1192607]
[1744900714525,0.14851093,83866.0,83865.0,0.1192607]
[1744900715424,0.14851093,83866.0,83865.0,0.1222607]
[1744900716131,0.14851093,83866.0,83865.0,0.1252607]
[1744900717025,0.14851093,83866.0,83865.0,0.1242607]
[1744900717534,0.1192582,83867.0,83866.0,0.1192592]
[1744900717722,0.1192582,83867.0,83866.0,0.2254592]
[1744900718528,0.1192582,83867.0,83866.0,0.2294592]
[1744900719149,0.1192582,83867.0,83866.0,0.2284592]
[1744900719636,0.1192582,83867.0,83866.0,0.2294592]
[1744900720931,0.1192582,83867.0,83866.0,0.2324592]
[1744900721332,0.1192582,83867.0,83866.0,0.2264592]
[1744900721527,0.1192582,83867.0,83866.0,0.2284592]
[1744900722138,0.1192582,83867.0,83866.0,0.2294592]
[1744900722343,0.1192582,83867.0,83866.0,0.1102]
[1744900722531,0.1192582,83867.0,83866.0,0.2324592]
[1744900722732,0.4800582,83867.0,83866.0,0.0571]
[1744900722934,0.5855582,83867.0,83866.0,0.0581]
[1744900723133,0.5855582,83867.0,83866.0,0.1774392]
[1744900723434,0.2843903,83867.0,83866.0,0.1192592]
[1744900723830,0.1651296,83867.0,83866.0,0.1192592]
[1744900724140,0.1651296,83867.0,83866.0,0.1222592]
[1744900724531,0.1651296,83867.0,83866.0,0.1212592]
[1744900725633,0.1661296,83867.0,83866.0,0.1212592]
[1744900725828,0.1661296,83867.0,83866.0,0.1202592]
[1744900726333,0.1651296,83867.0,83866.0,0.1212592]
[1744900728025,0.1661296,83867.0,83866.0,0.1202592]
[1744900728229,0.1661296,83867.0,83866.0,0.1727592]
[1744900728631,0.1651296,83867.0,83866.0,0.1737592]
[1744900728835,0.1651296,83867.0,83866.0,0.1727592]
[1744900729336,0.1651296,83867.0,83866.0,0.1192592]
[1744900730435,0.1661296,83867.0,83866.0,0.1192592]
[1744900730839,0.1671296,83867.0,83862.0,0.0532]
[1744900731030,0.1192649,83862.0,83861.0,0.000108]
[1744900731234,0.1292649,83862.0,83861.0,0.000108]
[1744900731543,0.0596353,83858.0,83855.0,0.0087242]
[1744900731735,0.1192763,83854.0,83853.0,0.000108]
[1744900731936,0.0596424,83848.0,83846.0,0.2321293]
[1744900732138,0.1192863,83847.0,83846.0,0.2321293]
[1744900732435,0.2232863,83847.0,83846.0,0.2321293]
[1744900732944,0.178912,83856.0,83854.0,0.0596381]
[1744900733135,0.178912,83856.0,83855.0,0.1711749]
[1744900734151,0.178912,83856.0,83855.0,0.1192749]
[1744900734841,0.279512,83856.0,83855.0,0.1192749]
[1744900735436,0.280512,83856.0,83855.0,0.1192749]
[1744900739941,0.280512,83856.0,83855.0,0.1714749]
[1744900740245,0.280512,83856.0,83855.0,0.0522]
[1744900740645,0.1192749,83855.0,83854.0,0.00879126]
[1744900740840,0.1192763,83854.0,83853.0,0.1192777]
[1744900741144,0.2224763,83854.0,83853.0,0.1192777]
[1744900741544,0.1192792,83852.0,83851.0,0.0596401]
[1744900741948,0.2239792,83852.0,83851.0,0.0596401]
[1744900742346,0.119282,83850.0,83849.0,0.000108]
[1744900742547,0.119282,83850.0,83835.0,0.00512909]
[1744900742548,0.0596424,83848.0,83835.0,0.00512909]
[1744900742851,0.1193105,83830.0,83829.0,0.00893882]
[1744900743050,0.1193204,83823.0,83822.0,0.1193212]
[1744900743454,0.1193233,83821.0,83820.0,0.0596616]
[1744900744151,0.1734233,83821.0,83820.0,0.0596616]
[1744900744347,0.0596483,83840.0,83820.0,0.0090122]
[1744900744653,0.1193026,83836.0,83835.0,0.059651]
[1744900744851,0.1293026,83836.0,83835.0,0.059651]
[1744900745044,0.1193026,83836.0,83835.0,0.110951]
[1744900746353,0.0999,83838.0,83837.0,0.1193005]
[1744900746550,0.2191991,83838.0,83837.0,0.12815429]
[1744900746852,0.0497,83838.0,83837.0,0.48895429]
[1744900747053,0.001,83840.0,83839.0,0.1192977]
[1744900747245,0.50931093,83849.0,83837.0,0.48895279]
[1744900747246,0.3608,83849.0,83848.0,0.1192848]
[1744900747441,0.4800834,83849.0,83848.0,0.1192848]
[1744900748051,0.4800834,83849.0,83848.0,0.1707848]
[1744900749352,0.4800834,83849.0,83848.0,0.1202848]
[1744900749656,0.4800834,83849.0,83848.0,0.1212848]
[1744900750046,0.4800834,83849.0,83848.0,0.1202848]
[1744900750248,0.4800834,83849.0,83848.0,0.1192848]
[1744900750551,0.4800834,83849.0,83847.0,0.051]
[1744900750552,0.1192848,83848.0,83847.0,0.051]
[1744900750753,0.1192877,83846.0,83845.0,0.2385743]
[1744900751249,0.1027,83848.0,83847.0,0.1192863]
[1744900751459,0.3608,83860.0,83859.0,0.1192692]
[1744900751754,0.0538,83860.0,83859.0,0.1192692]
[1744900751952,0.1190772,83861.0,83860.0,0.1192678]
[1744900752347,0.1190772,83861.0,83860.0,0.18138087]
[1744900753156,0.0596357,83858.0,83854.0,0.3608]
[1744900753356,0.1192749,83855.0,83854.0,0.3608]
[1744900753561,0.119282,83850.0,83849.0,0.000108]
[1744900754045,0.1789287,83849.0,83848.0,0.1192845]
[1744900754250,0.1192848,83849.0,83848.0,0.1192845]
[1744900754554,0.2207848,83849.0,83848.0,0.1192845]
[1744900754752,0.2207848,83849.0,83848.0,0.1193645]
[1744900756060,0.2217848,83849.0,83848.0,0.1193645]
[1744900756668,0.2217848,83849.0,83848.0,0.1203645]
[1744900757158,0.2217848,83849.0,83848.0,0.1193645]
[1744900757360,0.2227848,83849.0,83848.0,0.1193645]
[1744900757754,0.2217848,83849.0,83848.0,0.1193645]
[1744900757954,0.2227848,83849.0,83848.0,0.1193645]
[1744900758359,0.3410711,83849.0,83846.0,0.1704862]
[1744900758564,0.3420711,83849.0,83848.0,0.1193648]
[1744900758954,0.3420711,83849.0,83848.0,0.1192848]
[1744900759864,0.3400711,83849.0,83848.0,0.1193648]
[1744900760463,0.3410711,83849.0,83848.0,0.1193648]
[1744900760663,0.2217848,83849.0,83848.0,0.1193648]
[1744900761662,0.2227848,83849.0,83848.0,0.1193648]
[1744900762369,0.2217848,83849.0,83848.0,0.1193648]
[1744900763470,0.2207848,83849.0,83848.0,0.1193648]
[1744900764369,0.2217848,83849.0,83848.0,0.1193648]
[1744900765571,0.2217848,83849.0,83848.0,0.1695648]
[1744900765768,0.1621424,83849.0,83848.0,0.1695648]
[1744900766574,0.1611424,83849.0,83848.0,0.1695648]
[1744900767570,0.1190772,83854.0,83853.0,0.1192777]
[1744900767869,0.17735081,83868.0,83860.0,0.1182678]
[1744900768056,0.17735081,83868.0,83860.0,0.4790678]
[1744900768259,0.4800371,83882.0,83881.0,0.1192379]
[1744900768457,0.4800371,83882.0,83881.0,0.1182379]
[1744900770061,0.0972,83882.0,83881.0,0.1192379]
[1744900770270,0.2164365,83882.0,83881.0,0.1192379]
[1744900770471,0.2174365,83882.0,83881.0,0.2120379]
[1744900770869,0.1664365,83882.0,83881.0,0.22425296]
[1744900771067,0.1674365,83882.0,83881.0,0.22425296]
[1744900771468,0.001,83882.0,83881.0,0.22425296]
[1744900772065,0.059617,83884.0,83883.0,0.178845]
[1744900772266,0.059617,83884.0,83883.0,0.272145]
[1744900773075,0.109417,83884.0,83883.0,0.272145]
[1744900773277,0.0596141,83888.0,83887.0,0.1192294]
[1744900773477,0.1094141,83888.0,83887.0,0.1192294]
[1744900773882,0.005,83890.0,83889.0,0.1192265]
[1744900774272,0.005,83890.0,83889.0,0.4800265]
[1744900774467,0.1,83900.0,83893.0,0.0596099]
[1744900774673,0.1,83900.0,83899.0,0.1192123]
[1744900774864,0.2192109,83900.0,83899.0,0.1192123]
[1744900775072,0.2192109,83900.0,83899.0,0.2145123]
[1744900775382,0.119218,83895.0,83894.0,0.0467]
[1744900775582,0.1192223,83893.0,83892.0,0.1192217]
[1744900775980,0.2163223,83893.0,83892.0,0.1192217]
[1744900776180,0.2263223,83893.0,83892.0,0.1192217]
[1744900776372,0.1788388,83891.0,83890.0,0.1192241]
[1744900777084,0.1788388,83891.0,83890.0,0.1193041]
[1744900777673,0.1567111,83893.0,83890.0,8e-05]
[1744900777886,0.1071111,83893.0,83892.0,0.1192223]
[1744900779200,0.1192237,83891.0,83890.0,0.04608]
[1744900779388,0.1192237,83891.0,83890.0,0.1652251]
[1744900779686,0.1192237,83891.0,83890.0,0.2148051]
[1744900781586,0.3608,83903.0,83890.0,0.09558]
[1744900781782,0.0499,83902.0,83899.0,0.4800123]
[1744900781984,0.2192109,83900.0,83899.0,0.4800123]
[1744900782189,0.2192109,83900.0,83899.0,0.1192123]
[1744900782486,0.1192209,83893.0,83892.0,0.0596111]
[1744900782984,0.1192209,83893.0,83892.0,0.1591111]
[1744900783789,0.2185209,83893.0,83892.0,0.1591911]
[1744900783991,0.2185209,83893.0,83892.0,0.1591111]
[1744900784180,0.2185209,83893.0,83892.0,0.1591911]
[1744900784984,0.2185209,83893.0,83892.0,0.0596911]
[1744900785390,0.2185209,83893.0,83892.0,0.1634111]
[1744900785692,0.2185209,83893.0,83892.0,0.1634911]
[1744900786778,0.1691209,83893.0,83892.0,0.1634911]
[1744900786985,0.1192209,83893.0,83892.0,0.1634911]
[1744900787886,0.2226209,83893.0,83892.0,0.1634911]
[1744900789886,0.1,83900.0,83897.0,0.1788191]
[1744900790086,0.1,83900.0,83898.0,0.0561]
[1744900790087,0.1105062,83899.0,83898.0,0.0561]
[1744900790292,0.1624062,83899.0,83898.0,0.1126]
[1744900790689,0.1624062,83899.0,83898.0,0.1192138]
[1744900791083,0.1624062,83899.0,83898.0,0.1753938]
[1744900791999,0.1624062,83899.0,83898.0,0.1192938]
[1744900792499,0.1624062,83899.0,83898.0,0.2300938]
[1744900793305,0.1028,83899.0,83898.0,0.2300938]
[1744900793796,0.1028,83899.0,83898.0,0.2310938]
[1744900793992,0.0509,83899.0,83898.0,0.2310938]
[1744900794207,0.0564,83907.0,83906.0,0.1192024]
[1744900794592,0.0564,83907.0,83906.0,0.4800024]
[1744900794788,0.0564,83907.0,83906.0,0.5351024]
[1744900795401,0.0531,83910.0,83909.0,0.1191981]
[1744900797004,0.0531,83910.0,83909.0,0.13171076]
[1744900799498,0.2288967,83910.0,83909.0,0.13171076]
[1744900799708,0.1097,83910.0,83909.0,0.13171076]
[1744900800002,0.005,83916.0,83915.0,0.1191896]
[1744900800500,0.1241882,83916.0,83915.0,0.1723896]
[1744900801195,0.2319882,83916.0,83915.0,0.1723896]
[1744900801590,0.1191896,83915.0,83914.0,0.3608]
[1744900802100,0.2269896,83915.0,83914.0,0.3608]
[1744900802401,0.2269896,83915.0,83914.0,0.479991]
[1744900802603,0.2369896,83915.0,83914.0,0.479991]
[1744900804101,0.1178,83915.0,83914.0,0.479991]
[1744900804303,0.054,83930.0,83929.0,0.1191697]
[1744900804505,0.01,83930.0,83929.0,0.1191697]
[1744900804702,0.1787482,83933.0,83932.0,0.1191655]
[1744900804901,0.1887482,83933.0,83932.0,0.1191655]
[1744900805209,0.1191782,83923.0,83922.0,0.0528]
[1744900805406,0.1191782,83923.0,83922.0,0.1191797]
[1744900805709,0.1191896,83915.0,83914.0,0.1719883]
[1744900805894,0.1191896,83915.0,83914.0,0.2749083]
[1744900806406,0.1191896,83915.0,83914.0,0.2749883]
[1744900807207,0.1191896,83915.0,83914.0,0.2759883]
[1744900807504,0.1730896,83915.0,83914.0,0.1730683]
[1744900808607,0.1730896,83915.0,83914.0,0.1720683]
[1744900808805,0.1730896,83915.0,83914.0,0.1730683]
[1744900809199,0.0539,83915.0,83914.0,0.1720683]
[1744900809694,0.0539,83915.0,83914.0,0.18111375]
[1744900810300,0.1730896,83915.0,83914.0,0.12831645]
[1744900810602,0.1730896,83915.0,83914.0,0.13023645]
[1744900811197,0.1730896,83915.0,83914.0,0.13031645]
[1744900811409,0.1730896,83915.0,83914.0,0.13023645]
[1744900811612,0.1730896,83915.0,83914.0,0.13031645]
[1744900811799,0.1730896,83915.0,83914.0,0.01112545]
[1744900811994,0.1730896,83915.0,83914.0,0.01104545]
[1744900812199,0.1730896,83915.0,83914.0,0.01112545]
[1744900812612,0.1730896,83915.0,83914.0,0.00912545]
[1744900812815,0.1730896,83915.0,83914.0,0.06192545]
[1744900813111,0.1730896,83915.0,83914.0,0.00912545]
[1744900813413,0.1830896,83915.0,83914.0,8e-05]
[1744900813803,0.1191995,83908.0,83904.0,0.0528]
[1744900814005,0.1291995,83908.0,83899.0,0.0528]
[1744900814214,0.1291995,83908.0,83900.0,0.1192107]
[1744900814403,0.1788176,83901.0,83900.0,0.0596053]
[1744900814717,0.0596053,83901.0,83900.0,0.0596053]
[1744900815209,0.0596053,83901.0,83900.0,0.06862254]
[1744900815413,0.1660053,83901.0,83900.0,0.00901724]
[1744900816019,0.1660053,83901.0,83900.0,0.12914814]
[1744900816315,0.1660053,83901.0,83900.0,0.12922814]
[1744900816519,0.1660053,83901.0,83900.0,0.12822814]
[1744900816706,0.1660053,83901.0,83900.0,0.14045325]
[1744900817018,0.1660053,83901.0,83900.0,0.12822814]
[1744900820110,0.1660053,83901.0,83900.0,0.14041287]
[1744900822213,0.1660053,83901.0,83900.0,0.12822814]
[1744900823519,0.1660053,83901.0,83900.0,0.14027828]
[1744900824712,0.1660053,83901.0,83900.0,0.12822814]
[1744900824911,0.1660053,83901.0,83900.0,0.00901724]
[1744900825314,0.1660053,83901.0,83900.0,0.12822814]
[1744900826315,0.25555346,83901.0,83900.0,0.12822814]
[1744900827808,0.25555346,83901.0,83900.0,0.17682814]
[1744900829419,0.25555346,83901.0,83900.0,0.18905937]
[1744900829621,0.08954816,83901.0,83900.0,0.18905937]
[1744900829818,0.11936222,83907.0,83906.0,0.1192024]
[1744900830125,0.14903864,83914.0,83913.0,0.1191924]
[1744900830308,0.14903864,83914.0,83913.0,0.5784724]
[1744900830516,0.26822964,83914.0,83913.0,0.6791724]
[1744900831008,0.26822964,83914.0,83913.0,0.6792524]
[1744900831416,0.26822964,83914.0,83913.0,0.5807724]
[1744900831616,0.26822964,83914.0,83913.0,0.3184524]
[1744900833022,0.26822964,83914.0,83913.0,0.3183724]
[1744900833218,0.26822964,83914.0,83913.0,0.6792524]
[1744900833219,0.14903864,83914.0,83913.0,0.6792524]
[1744900834432,0.1191875,83917.0,83916.0,0.1191882]
[1744900835225,0.1191821,83921.0,83916.0,0.0595934]
[1744900835420,0.1191821,83921.0,83920.0,0.1191811]
[1744900835823,0.1191821,83921.0,83920.0,0.2228811]
[1744900836326,0.059584,83931.0,83930.0,0.1191669]
[1744900836527,0.1787561,83931.0,83930.0,0.1191669]
[1744900836727,0.2279561,83931.0,83930.0,0.1191669]
[1744900837112,0.2279561,83931.0,83930.0,0.13112649]
[1744900837326,0.5887561,83931.0,83930.0,0.13112649]
[1744900837528,0.0595799,83936.0,83932.0,0.059582]
[1744900837713,0.0492,83941.0,83935.0,0.1191612]
[1744900837917,0.0492,83941.0,83933.0,0.0595813]
[1744900837918,0.3658,83942.0,83936.0,0.1191598]
[1744900838118,0.005,83942.0,83936.0,0.1191598]
[1744900838720,0.1191543,83940.0,83936.0,0.1191598]
[1744900839023,0.1837277,83942.0,83936.0,0.1191598]
[1744900839239,0.0645756,83942.0,83936.0,0.1191598]
[1744900839527,0.0595773,83940.0,83936.0,0.1191598]
[1744900839717,0.26819704,83937.0,83936.0,0.1191598]
[1744900839917,0.26819704,83937.0,83936.0,0.1192398]
[1744900840223,0.005,83942.0,83941.0,0.1191527]
[1744900841522,0.3608,83970.0,83967.0,0.1191158]
[1744900841826,0.2041144,83968.0,83967.0,0.1191158]
[1744900842321,0.2041144,83968.0,83967.0,0.1312652]
[1744900842728,0.1241144,83968.0,83967.0,0.1312652]
[1744900843230,0.005,83968.0,83967.0,0.1312652]
[1744900843418,0.1736144,83968.0,83967.0,0.1312652]
[1744900843621,0.1736144,83968.0,83967.0,0.1191158]
[1744900843814,0.0545,83968.0,83967.0,0.1191158]
[1744900844121,0.005,83968.0,83967.0,0.1191958]
[1744900844321,0.005,83968.0,83967.0,0.13144915]
[1744900845028,0.005,83968.0,83967.0,0.49224915]
[1744900845224,0.5304849,83989.0,83971.0,0.0595545]
[1744900845433,0.0512,83988.0,83971.0,0.0595545]
[1744900845631,0.119093,83985.0,83984.0,0.0595458]
[1744900845827,0.169093,83985.0,83984.0,0.0595458]
[1744900846031,0.1539,83985.0,83984.0,0.0595458]
[1744900846236,0.2729903,83985.0,83984.0,0.0595458]
[1744900846435,0.5147,83985.0,83976.0,0.0507]
[1744900846622,0.1191016,83977.0,83976.0,0.1102514]
[1744900846821,0.0595475,83982.0,83977.0,0.0595501]
[1744900847028,0.1033,83981.0,83979.0,0.0595491]
[1744900847330,0.0512,83981.0,83980.0,0.1190974]
[1744900848132,0.3608,83985.0,83984.0,0.1190917]
[1744900851024,0.112641,83991.0,83990.0,0.1190832]
[1744900851225,0.211041,83991.0,83990.0,0.1190832]
[1744900851620,0.05,83991.0,83990.0,0.1190832]
[1744900852127,0.005,83994.0,83993.0,0.1190789]
[1744900852323,0.005,83994.0,83993.0,0.2154789]
[1744900852724,0.3608,84006.0,83999.0,0.1190704]
[1744900852920,0.219069,84000.0,83999.0,0.1190704]
[1744900853330,0.219069,84000.0,83999.0,0.13125113]
[1744900853636,0.219069,84000.0,83999.0,0.13133113]
[1744900853931,0.270069,84000.0,83999.0,0.13125113]
[1744900854132,0.270069,84000.0,83999.0,0.13133113]
[1744900854520,0.270069,84000.0,83999.0,0.13125113]
[1744900855336,0.270069,84000.0,83999.0,0.13133113]
[1744900855629,0.151,84000.0,83999.0,0.18003113]
[1744900856138,0.270069,84000.0,83999.0,0.18003113]
[1744900857236,0.151,84000.0,83999.0,0.18003113]
[1744900858331,0.270069,84000.0,83999.0,0.23353113]
[1744900858639,0.151,84000.0,83999.0,0.23353113]
[1744900859535,0.270069,84000.0,83999.0,0.23353113]
[1744900859738,0.270069,84000.0,83999.0,0.18483113]
[1744900859937,0.320369,84000.0,83999.0,0.18483113]
[1744900861326,0.151,84000.0,83999.0,0.18483113]
[1744900861538,0.270069,84000.0,83999.0,0.23883113]
[1744900862127,0.321669,84000.0,83999.0,0.23783113]
[1744900862337,0.2026,84000.0,83999.0,0.23783113]
[1744900862833,0.151,84000.0,83999.0,0.23883113]
[1744900863141,0.270069,84000.0,83999.0,0.23883113]
[1744900863729,0.151,84000.0,83999.0,0.23883113]
[1744900863929,0.1,84000.0,83999.0,0.23883113]
[1744900864133,0.1,84000.0,83999.0,0.23783113]
[1744900864438,0.1,84000.0,83999.0,0.23883113]
[1744900864832,0.1,84000.0,83999.0,0.23983113]
[1744900865035,0.6708,84000.0,83989.0,0.0528]
[1744900865338,0.1190775,83994.0,83993.0,0.0001458]
[1744900865529,0.1190974,83980.0,83979.0,0.0964]
[1744900865735,0.1190988,83979.0,83978.0,0.0001458]
[1744900866040,0.1191087,83972.0,83971.0,0.1191088]
[1744900866238,0.1191087,83972.0,83971.0,0.1192168]
[1744900866437,0.1191087,83972.0,83971.0,0.1191088]
[1744900866641,0.1191144,83968.0,83967.0,0.00908229]
[1744900866834,0.1191144,83968.0,83967.0,0.1191158]
[1744900867226,0.0509,83969.0,83968.0,0.1191144]
[1744900867428,0.0595483,83981.0,83977.0,0.1191002]
[1744900867635,0.1639503,83978.0,83977.0,0.1191002]
[1744900867837,0.1739503,83978.0,83977.0,0.1191002]
[1744900868239,0.01,83978.0,83977.0,0.1694002]
[1744900868437,0.287869,83990.0,83989.0,0.1190846]
[1744900868632,0.297869,83990.0,83989.0,0.10691539]
[1744900868833,0.297869,83990.0,83989.0,0.10591539]
[1744900869332,0.297869,83990.0,83989.0,0.10477294]
[1744900869644,0.348669,83990.0,83989.0,0.10477294]
[1744900870235,0.1115,83990.0,83989.0,0.10477294]
[1744900870438,0.001,83990.0,83989.0,0.46557294]
[1744900870636,0.1,84000.0,83999.0,0.1190704]
[1744900870841,0.1,84000.0,83999.0,0.13139935]
[1744900871030,0.1,84000.0,83999.0,0.49219935]
[1744900872245,0.17801727,84008.0,84007.0,0.1190591]
[1744900872435,0.17801727,84008.0,84007.0,0.4798591]
[1744900873036,0.17801727,84008.0,84007.0,0.5282591]
[1744900874936,7e-08,84008.0,84007.0,0.5283391]
[1744900875134,0.0487,84034.0,84007.0,0.65928]
[1744900875347,0.3608,84029.0,84016.0,0.3608]
[1744900875539,0.1552,84028.0,84027.0,0.1190307]
[1744900875844,0.1552,84028.0,84019.0,0.0595208]
[1744900876044,0.0595153,84027.0,84022.0,0.1190369]
[1744900876243,0.26823796,84025.0,84021.0,0.0595191]
[1744900876442,0.053,84024.0,84019.0,0.000108]
[1744900876644,0.2307351,84024.0,84022.0,0.1190376]
[1744900876951,0.1117,84024.0,84023.0,0.1190364]
[1744900877153,0.1117,84024.0,84023.0,0.12810817]
[1744900877947,0.1017,84024.0,84023.0,0.12810817]
[1744900878343,0.0487,84024.0,84023.0,0.12810817]
[1744900878644,0.14920346,84025.0,84024.0,0.119035]
[1744900878847,0.14920346,84025.0,84024.0,0.171035]
[1744900879839,0.14920346,84025.0,84024.0,0.531835]
[1744900880257,0.0509,84040.0,84039.0,0.1190137]
[1744900880439,0.1014,84040.0,84039.0,0.1190137]
[1744900881253,0.0505,84040.0,84039.0,0.1190137]
[1744900881457,0.005,84046.0,84045.0,0.1190052]
[1744900881658,0.005,84046.0,84045.0,0.4798052]
[1744900882047,0.005,84046.0,84045.0,0.49204429]
[1744900882445,0.005,84046.0,84045.0,0.54474429]
[1744900883141,0.3658,84046.0,84045.0,0.06493909]
[1744900883343,0.3658,84046.0,84040.0,0.05]
[1744900883551,0.005,84046.0,84045.0,0.1190852]
[1744900885362,0.005,84046.0,84025.0,0.0493]
[1744900885664,0.015,84046.0,84045.0,8e-05]
[1744900885859,0.015,84046.0,84045.0,0.1190852]
[1744900886160,0.1340038,84046.0,84045.0,8e-05]
[1744900886460,0.1190107,84042.0,84036.0,0.01237767]
[1744900886757,0.3708,84042.0,84041.0,0.1191189]
[1744900886951,0.3708,84042.0,84041.0,0.1190109]
[1744900887155,0.3708,84042.0,84041.0,0.1190909]
[1744900887350,0.3708,84042.0,84041.0,8e-05]
[1744900887546,0.3708,84042.0,84041.0,0.1190909]
[1744900888055,0.4898095,84042.0,84041.0,0.1190909]
[1744900888659,0.01,84042.0,84041.0,0.1190909]
[1744900890258,0.01,84042.0,84041.0,0.1711909]
[1744900890449,0.005,84046.0,84045.0,0.1190052]
[1744900891653,0.1240038,84046.0,84045.0,0.1190052]
[1744900891853,0.1340038,84046.0,84045.0,0.1190052]
[1744900892050,0.015,84046.0,84045.0,0.1190052]
[1744900893366,0.0594896,84064.0,84045.0,0.1190052]
[1744900893367,0.14920346,84070.0,84045.0,0.70548]
[1744900893550,0.1189762,84066.0,84065.0,0.118975]
[1744900893754,0.1389762,84066.0,84065.0,0.118975]
[1744900894065,0.0515,84069.0,84068.0,0.1189727]
[1744900894366,0.0815,84069.0,84068.0,0.1189727]
[1744900895066,0.0515,84069.0,84068.0,0.1189727]
[1744900895668,0.0515,84069.0,84068.0,0.13082421]
[1744900896165,0.1704713,84069.0,84068.0,0.1189727]
[1744900896368,0.0515,84069.0,84068.0,0.1189727]
[1744900897155,0.11891449,84070.0,84069.0,0.1189713]
[1744900897360,0.11891449,84070.0,84069.0,0.2172713]
[1744900898565,0.005,84072.0,84071.0,0.1189684]
[1744900900157,0.005,84072.0,84071.0,0.2205684]
[1744900900463,0.005,84072.0,84071.0,0.5813684]
[1744900900864,0.0494,84083.0,84082.0,0.1189529]
[1744900901059,0.0514,84088.0,84087.0,0.1189458]
[1744900901368,0.0489,84094.0,84091.0,0.0594694]
[1744900901671,0.3064366,84094.0,84093.0,0.1189373]
[1744900901867,0.1389,84094.0,84093.0,0.1189373]